bitfinex-derivatives/quotes_SOLF0:USTF0_20260202
["timestamp","ask_amount","ask_price","bid_price","bid_amount"]
[1770042771505,144.70444158,103.71,103.6,205.93616943]
[1770042771707,9.58084158,103.74,103.65,70.68186943]
[1770042771913,47.65519,103.78,103.68,143.8456]
[1770042772210,9.58084158,103.82,103.74,135.0731]
[1770042772412,29.39364842,103.84,103.76,135.0524]
[1770042772609,29.39364842,103.89,103.78,205.70536943]
[1770042772811,164.31934842,103.86,103.78,70.68186943]
[1770042773008,164.31934842,103.86,103.75,79.36426943]
[1770042773009,134.9388,103.85,103.75,79.36426943]
[1770042773210,134.9519,103.84,103.75,70.68186943]
[1770042773417,134.9541,103.84,103.75,70.68186943]
[1770042773616,134.9951,103.81,103.71,70.19058388]
[1770042774112,143.698,103.79,103.68,205.34898388]
[1770042774310,414.99984842,103.8,103.7,135.132]
[1770042774311,164.39984842,103.8,103.7,135.132]
[1770042774508,145.55851269,103.81,103.68,135.1584]
[1770042774509,29.39364842,103.83,103.74,205.26268388]
[1770042774814,29.39364842,103.86,103.77,205.23128388]
[1770042775011,134.913,103.87,103.77,70.19058388]
[1770042775206,134.913,103.87,103.74,135.0787]
[1770042775207,134.9439,103.85,103.74,143.7622]
[1770042775407,134.9439,103.85,103.75,204.09226014]
[1770042775606,134.9439,103.85,103.75,69.02616014]
[1770042775607,134.9388,103.85,103.75,69.02616014]
[1770042776008,143.6134,103.85,103.75,69.02616014]
[1770042776312,12.89226017,103.86,103.75,204.08886014]
[1770042776513,147.82176017,103.86,103.75,204.08886014]
[1770042776719,134.9391,103.85,103.75,69.02616014]
[1770042776919,134.9391,103.85,103.75,204.09326014]
[1770042777111,153.69539412,103.82,103.71,68.80208744]
[1770042777316,134.9975,103.81,103.71,203.92108744]
[1770042777518,135.0105,103.8,103.71,68.80208744]
[1770042777813,135.0298,103.78,103.68,143.8385]
[1770042778019,135.0433,103.77,103.67,588.87368744]
[1770042778220,135.0555,103.76,103.67,68.80208744]
[1770042778414,18.71799412,103.79,103.69,203.94748744]
[1770042778611,135.0295,103.78,103.69,68.80208744]
[1770042778811,153.73619412,103.79,103.69,68.80208744]
[1770042779215,29.39364842,103.83,103.74,203.87828744]
[1770042779421,134.9659,103.83,103.74,68.80208744]
[1770042779622,134.9792,103.82,103.74,68.80208744]
[1770042779816,134.9797,103.82,103.74,68.80208744]
[1770042780218,164.34544842,103.84,103.73,203.89528744]
[1770042780420,134.939,103.85,103.75,68.80208744]
[1770042780818,134.9519,103.84,103.75,68.80208744]
[1770042781013,155.57226741,103.83,103.73,203.89378744]
[1770042781214,155.57226741,103.83,103.69,135.1354]
[1770042781215,135.0183,103.79,103.7,68.80208744]
[1770042781419,135.0339,103.78,103.7,68.80208744]
[1770042781717,135.0188,103.79,103.7,68.80208744]
[1770042781917,135.0374,103.78,103.67,68.80208744]
[1770042782118,135.0206,103.79,103.71,68.80208744]
[1770042782325,164.43714842,103.77,103.68,68.80208744]
[1770042782523,135.0347,103.78,103.65,68.80208744]
[1770042782524,135.098,103.73,103.65,68.80208744]
[1770042782823,386.0745,103.73,103.63,204.02408744]
[1770042783021,135.0334,103.78,103.67,203.97238744]
[1770042783220,153.76374778,103.78,103.68,68.80208744]
[1770042783416,18.73034778,103.78,103.68,203.95918744]
[1770042783727,386.0474,103.82,103.68,203.95918744]
[1770042783728,434.1665962,103.82,103.72,68.80208744]
[1770042783918,18.73034778,103.85,103.76,135.0539]
[1770042784122,134.9133,103.87,103.77,68.80208744]
[1770042784316,134.9251,103.86,103.77,68.80208744]
[1770042784517,134.9133,103.87,103.77,203.84318744]
[1770042784718,153.66154778,103.86,103.76,135.0536]
[1770042784922,134.9283,103.86,103.77,68.80208744]
[1770042785620,8.6746,103.85,103.75,143.75]
[1770042785820,8.6746,103.85,103.75,212.55208744]
[1770042786018,403.85241598,103.87,103.76,212.53548744]
[1770042786218,134.9448,103.85,103.76,68.80208744]
[1770042786420,134.9541,103.84,103.76,68.80208744]
[1770042786618,134.8966,103.89,103.79,203.81688744]
[1770042786816,152.50591598,103.91,103.81,68.80208744]
[1770042787022,134.8784,103.9,103.81,68.80208744]
[1770042787327,38.06454842,103.9,103.81,68.80208744]
[1770042787521,8.6709,103.9,103.81,68.80208744]
[1770042787723,8.6715,103.89,103.81,68.80208744]
[1770042788121,134.8801,103.9,103.81,68.80208744]
[1770042788626,177.2589771,103.95,103.83,68.80208744]
[1770042788824,134.8483,103.92,103.83,68.80208744]
[1770042789025,134.8605,103.91,103.83,68.80208744]
[1770042789223,134.9049,103.88,103.79,68.80208744]
[1770042789421,179.49682734,103.92,103.81,203.79058744]
[1770042789623,143.5395,103.91,103.83,68.80208744]
[1770042789822,134.8777,103.9,103.79,203.81708744]
[1770042790220,143.5738,103.88,103.79,68.80208744]
[1770042790419,251.9,103.9,103.81,68.80208744]
[1770042790720,154.35224684,103.91,103.81,68.80208744]
[1770042791127,143.5439,103.9,103.81,68.80208744]
[1770042791328,143.5439,103.9,103.78,203.82948744]
[1770042791329,134.8907,103.89,103.78,203.82948744]
[1770042791523,154.35224684,103.91,103.81,203.79048744]
[1770042791729,134.8748,103.9,103.81,68.80208744]
[1770042791931,134.8732,103.9,103.81,68.80208744]
[1770042792825,8.6716,103.89,103.81,68.80208744]
[1770042793227,143.544,103.9,103.81,68.80208744]
[1770042793628,134.913,103.87,103.78,68.80208744]
[1770042793828,143.5863,103.87,103.78,68.80208744]
[1770042794028,134.887,103.89,103.8,68.80208744]
[1770042794624,25.89490751,103.88,103.77,68.80208744]
[1770042794929,134.9119,103.87,103.77,68.80208744]
[1770042795124,8.6732,103.87,103.77,212.52318744]
[1770042795329,8.6732,103.87,103.78,68.80208744]
[1770042795731,180.27775435,103.88,103.79,68.80208744]
[1770042795932,387.3271,103.89,103.8,68.80208744]
[1770042796129,134.9428,103.85,103.77,68.80208744]
[1770042796334,134.9428,103.85,103.74,135.0723]
[1770042796335,134.9513,103.84,103.74,68.80208744]
[1770042796630,154.38414684,103.88,103.78,68.80208744]
[1770042796833,8.6732,103.87,103.78,203.83048744]
[1770042797030,19.48304684,103.88,103.78,203.83008744]
[1770042797231,143.6023,103.86,103.78,68.80208744]
[1770042797530,406.86294684,103.85,103.75,68.80208744]
[1770042797737,252.44,103.85,103.77,68.80208744]
[1770042797934,387.3783,103.85,103.77,68.80208744]
[1770042798330,134.9383,103.85,103.77,68.80208744]
[1770042798730,134.9525,103.84,103.77,68.80208744]
[1770042799129,156.25901123,103.85,103.75,8.6823]
[1770042799434,154.48704684,103.8,103.7,68.80208744]
[1770042799731,387.9769,103.79,103.7,68.80208744]
[1770042800035,154.48704684,103.8,103.7,203.93438744]
[1770042800236,135.0437,103.77,103.68,8.6885]
[1770042800437,388.1302,103.78,103.69,72.59260872]
[1770042800625,19.48304684,103.77,103.69,72.59260872]
[1770042801035,28.16454684,103.77,103.69,72.59260872]
[1770042801230,19.48304684,103.77,103.69,72.59260872]
[1770042801533,8.6824,103.76,103.67,81.28190872]
[1770042801729,269.9131,103.84,103.73,72.59260872]
[1770042801933,155.53819639,103.87,103.77,72.59260872]
[1770042802129,20.61619639,103.87,103.78,72.59260872]
[1770042802632,19.48304684,103.88,103.79,207.60710872]
[1770042802837,154.34384684,103.91,103.81,207.58080872]
[1770042803431,19.48304684,103.91,103.83,134.9625]
[1770042803632,134.8548,103.92,103.82,72.59260872]
[1770042803837,19.48304684,103.91,103.82,72.59260872]
[1770042804339,134.8791,103.9,103.82,72.59260872]
[1770042804531,134.8791,103.9,103.78,135.0198]
[1770042804532,134.9,103.88,103.78,72.59260872]
[1770042804727,143.5603,103.89,103.8,72.59260872]
[1770042805136,154.38744684,103.88,103.8,72.59260872]
[1770042805533,19.48304684,103.88,103.8,72.59260872]
[1770042805734,154.38344684,103.88,103.8,72.59260872]
[1770042805937,19.48304684,103.88,103.8,72.59260872]
[1770042806131,163.93968316,103.9,103.81,72.59260872]
[1770042806335,20.39558316,103.9,103.81,72.59260872]
[1770042806735,281.27304684,103.91,103.81,216.25470872]
[1770042806931,162.1424758,103.89,103.78,207.61930872]
[1770042807133,194.79178627,103.85,103.75,81.27540872]
[1770042807339,134.9648,103.83,103.75,72.59260872]
[1770042807537,186.15918627,103.82,103.72,72.59260872]
[1770042807835,135.0162,103.79,103.72,72.59260872]
[1770042808030,135.0035,103.8,103.69,207.73820872]
[1770042808228,135.0035,103.8,103.7,81.27920872]
[1770042808229,8.6799,103.79,103.7,81.27920872]
[1770042808435,186.15918627,103.82,103.72,72.59260872]
[1770042808739,439.39898627,103.82,103.72,72.59260872]
[1770042809335,59.85588627,103.82,103.72,216.38340872]
[1770042809532,135.0056,103.8,103.72,72.59260872]
[1770042809735,166.05183588,103.8,103.69,207.73790872]
[1770042809934,166.05183588,103.8,103.7,72.59260872]
[1770042810234,19.48304684,103.82,103.72,207.69920872]
[1770042810438,134.9928,103.81,103.71,72.59260872]
[1770042810630,135.0188,103.79,103.71,72.59260872]
[1770042810939,135.0188,103.79,103.68,72.59260872]
[1770042810940,135.0433,103.77,103.68,72.59260872]
[1770042811136,143.7542,103.75,103.65,456.95260872]
[1770042811339,135.0822,103.74,103.65,72.59260872]
[1770042811540,135.1542,103.69,103.61,72.59260872]
[1770042811834,8.6866,103.71,103.62,72.59260872]
[1770042812038,135.0916,103.74,103.64,72.59260872]
[1770042812243,135.1336,103.7,103.61,72.59260872]
[1770042812433,135.1602,103.68,103.61,72.59260872]
[1770042812738,135.1728,103.67,103.58,72.59260872]
[1770042812938,154.58314684,103.73,103.63,72.59260872]
[1770042813134,540.2513,103.76,103.66,72.59260872]
[1770042813135,135.0705,103.75,103.66,72.59260872]
[1770042813332,135.0945,103.73,103.63,216.50650872]
[1770042813529,177.23910022,103.7,103.6,72.59260872]
[1770042813833,135.1736,103.67,103.57,207.88570872]
[1770042814031,135.1869,103.66,103.58,72.59260872]
[1770042814230,135.2121,103.64,103.54,72.59260872]
[1770042814436,135.2649,103.6,103.5,72.59260872]
[1770042814637,135.2792,103.59,103.5,72.59260872]
[1770042814834,135.2649,103.6,103.5,72.59260872]
[1770042815038,154.73424684,103.61,103.5,72.59260872]
[1770042815334,135.2263,103.63,103.53,72.59260872]
[1770042815538,23.96131959,103.66,103.56,207.90520872]
[1770042815738,135.2004,103.65,103.56,72.59260872]
[1770042815931,159.14981959,103.66,103.56,72.59260872]
[1770042816133,135.2388,103.62,103.52,72.59260872]
[1770042816439,135.2642,103.6,103.5,72.59260872]
[1770042816636,135.2655,103.6,103.51,72.59260872]
[1770042816938,135.2809,103.59,103.51,72.59260872]
[1770042817138,388.7655,103.6,103.51,72.59260872]
[1770042817336,178.66936643,103.63,103.52,135.3652]
[1770042817540,273.24304684,103.66,103.57,207.89300872]
[1770042817741,143.89,103.65,103.57,72.59260872]
[1770042817934,135.2259,103.63,103.53,72.59260872]
[1770042818242,135.2649,103.6,103.49,207.98980872]
[1770042818437,19.48304684,103.6,103.52,72.59260872]
[1770042818740,19.48304684,103.63,103.54,72.59260872]
[1770042818935,154.67844684,103.66,103.56,72.59260872]
[1770042819136,135.142,103.7,103.6,72.59260872]
[1770042819344,163.27234684,103.73,103.63,72.59260872]
[1770042819639,389.0679,103.72,103.63,72.59260872]
[1770042819840,135.1352,103.7,103.6,72.59260872]
[1770042820041,135.1232,103.71,103.61,72.59260872]
[1770042820233,135.1486,103.69,103.61,72.59260872]
[1770042820434,143.8672,103.67,103.57,207.89340872]
[1770042820635,135.1858,103.66,103.57,72.59260872]
[1770042820839,135.1601,103.68,103.6,72.59260872]
[1770042821038,155.2961668,103.69,103.6,72.59260872]
[1770042821435,19.48304684,103.68,103.59,135.275]
[1770042821642,20.1487668,103.69,103.62,207.82940872]
[1770042821838,20.1487668,103.69,103.62,207.82790872]
[1770042822038,20.1487668,103.69,103.62,216.52170872]
[1770042822439,273.52304684,103.73,103.65,73.21790651]
[1770042822639,143.7522,103.75,103.65,73.21790651]
[1770042822833,154.57914684,103.73,103.62,209.35450651]
[1770042823037,135.1079,103.72,103.62,74.11920651]
[1770042823237,408.65914684,103.73,103.63,135.223]
[1770042823438,19.48304684,103.73,103.64,72.59260872]
[1770042823634,135.1206,103.71,103.61,135.2497]
[1770042823938,143.7934,103.72,103.61,216.53660872]
[1770042824140,135.1206,103.71,103.62,72.59260872]
[1770042824334,135.0943,103.73,103.64,72.59260872]
[1770042824544,135.0824,103.74,103.64,207.80210872]
[1770042824739,404.7192,103.88,103.64,207.80210872]
[1770042824740,19.48304684,103.78,103.67,72.59260872]
[1770042824940,7.73596632,103.76,103.65,72.59260872]
[1770042825146,154.55594684,103.75,103.65,72.59260872]
[1770042825446,19.48304684,103.75,103.66,72.59260872]
[1770042825647,135.0833,103.74,103.66,72.59260872]
[1770042825844,135.0987,103.73,103.63,72.59260872]
[1770042826050,135.1092,103.72,103.63,72.59260872]
[1770042826344,154.55174684,103.75,103.65,72.59260872]
[1770042826545,135.1075,103.72,103.61,207.84210872]
[1770042826843,135.1499,103.69,103.59,72.59260872]
[1770042827046,135.1746,103.67,103.59,72.59260872]
[1770042827248,135.1884,103.66,103.55,207.92060872]
[1770042827550,135.1746,103.67,103.56,207.90790872]
[1770042827551,404.14195009,103.67,103.56,207.90790872]
[1770042827744,135.1877,103.66,103.56,207.90760872]
[1770042827944,404.14195009,103.67,103.57,70.30070556]
[1770042828143,135.1862,103.66,103.57,70.30070556]
[1770042828651,404.14195009,103.67,103.54,70.30070556]
[1770042828652,135.2122,103.64,103.54,70.30070556]
[1770042828851,154.66324684,103.67,103.57,70.30070556]
[1770042829042,135.1992,103.65,103.57,70.30070556]
[1770042829248,135.2118,103.64,103.57,70.30070556]
[1770042829550,135.1859,103.66,103.57,70.30070556]
[1770042829745,135.1878,103.66,103.57,70.30070556]
[1770042829946,135.1856,103.66,103.57,70.30070556]
[1770042830149,8.6908,103.66,103.57,70.30070556]
[1770042830351,143.8786,103.66,103.57,70.30070556]
[1770042830552,19.48304684,103.67,103.58,69.19689882]
[1770042831050,158.52666298,103.68,103.59,69.19689882]
[1770042831051,135.1633,103.68,103.59,69.19689882]
[1770042831244,409.31624684,103.69,103.59,69.19689882]
[1770042831445,135.1618,103.68,103.59,69.19689882]
[1770042831749,135.1887,103.66,103.56,77.89549882]
[1770042832151,389.7818,103.68,103.56,77.89549882]
[1770042832152,135.1618,103.68,103.59,69.19689882]
[1770042832351,19.48304684,103.69,103.6,204.45779882]
[1770042832548,33.65158416,103.72,103.63,69.19689882]
[1770042832853,143.8085,103.71,103.63,69.19689882]
[1770042833151,149.27297135,103.76,103.66,204.38129882]
[1770042833355,8.6829,103.75,103.67,69.19689882]
[1770042833550,135.042,103.77,103.68,69.19689882]
[1770042833857,143.7425,103.76,103.68,69.19689882]
[1770042834245,135.0825,103.74,103.65,69.19689882]
[1770042834750,143.7666,103.74,103.65,69.19689882]
[1770042835357,8.6841,103.74,103.65,69.19689882]
[1770042835650,143.7672,103.74,103.65,69.19689882]
[1770042835850,154.55174684,103.75,103.66,69.19689882]
[1770042836051,135.0817,103.74,103.66,69.19689882]
[1770042836247,155.00990199,103.73,103.63,69.19689882]
[1770042836455,135.122,103.71,103.63,69.19689882]
[1770042836752,135.1469,103.69,103.6,69.19689882]
[1770042836954,19.90930199,103.68,103.59,204.47319882]
[1770042837251,254.48,103.7,103.6,135.2622]
[1770042837461,135.1303,103.71,103.62,69.19689882]
[1770042837649,143.8168,103.71,103.62,69.19689882]
[1770042838054,135.1346,103.7,103.62,69.19689882]
[1770042838250,8.6884,103.69,103.62,74.19689882]
[1770042838461,135.1346,103.7,103.62,74.19689882]
[1770042839361,8.6873,103.7,103.62,74.19689882]
[1770042840257,540.2852,103.75,103.62,74.19689882]
[1770042840258,135.0496,103.77,103.67,69.19689882]
[1770042840464,178.72590682,103.78,103.67,69.19689882]
[1770042840465,135.0207,103.79,103.69,69.19689882]
[1770042840756,135.0207,103.79,103.66,135.184]
[1770042840757,135.0552,103.76,103.66,204.37959882]
[1770042840952,135.0588,103.76,103.67,69.19689882]
[1770042841153,143.8257,103.7,103.61,69.19689882]
[1770042841354,154.59784684,103.72,103.61,204.44669882]
[1770042841555,135.0945,103.73,103.64,69.19689882]
[1770042841861,135.094,103.73,103.64,69.19689882]
[1770042842060,135.094,103.73,103.61,135.2498]
[1770042842061,135.1246,103.71,103.61,69.19689882]
[1770042842258,135.1866,103.66,103.57,69.19689882]
[1770042842459,142.67059612,103.64,103.54,69.19689882]
[1770042842658,7.45859612,103.62,103.54,69.19689882]
[1770042842969,7.45859612,103.64,103.55,204.52489882]
[1770042843160,7.45859612,103.66,103.58,69.19689882]
[1770042843861,135.1727,103.67,103.59,69.19689882]
[1770042844060,142.65159612,103.66,103.59,69.19689882]
[1770042844256,7.45859612,103.66,103.59,69.19689882]
[1770042844462,7.45859612,103.7,103.6,204.45719882]
[1770042844658,7.45859612,103.68,103.6,69.19689882]
[1770042844859,151.31029612,103.68,103.6,69.19689882]
[1770042845053,142.61779612,103.68,103.6,69.19689882]
[1770042845559,7.45859612,103.66,103.57,77.89449882]
[1770042845755,7.45859612,103.66,103.58,69.19689882]
[1770042845959,7.45859612,103.68,103.6,69.19689882]
[1770042846155,135.1865,103.66,103.6,69.19689882]
[1770042846352,135.2041,103.65,103.56,69.19689882]
[1770042846663,7.45859612,103.66,103.58,69.19689882]
[1770042846859,7.45859612,103.7,103.62,69.19689882]
[1770042847160,142.59269612,103.7,103.62,69.19689882]
[1770042847457,143.8084,103.71,103.62,69.19689882]
[1770042847654,135.1338,103.7,103.63,69.19689882]
[1770042847860,135.1476,103.69,103.63,69.19689882]
[1770042848059,8.6868,103.71,103.63,69.19689882]
[1770042848254,142.57179612,103.72,103.61,135.2497]
[1770042848255,7.45859612,103.72,103.64,69.19689882]
[1770042848562,142.57145086,103.71,103.61,69.19689882]
[1770042848760,7.44975086,103.71,103.63,69.19689882]
[1770042848961,7.44975086,103.73,103.65,77.88769882]
[1770042849157,158.37002591,103.79,103.67,69.19689882]
[1770042849360,142.47895086,103.78,103.69,69.19689882]
[1770042849662,16.13215086,103.76,103.69,69.19689882]
[1770042849964,135.0686,103.75,103.65,454.13689882]
[1770042850166,7.44975086,103.74,103.65,589.33429882]
[1770042850364,7.44975086,103.74,103.66,69.19689882]
[1770042850560,158.38622591,103.77,103.68,69.19689882]
[1770042850561,23.34372591,103.77,103.68,69.19689882]
[1770042850761,151.16025086,103.78,103.69,8.6876]
[1770042851064,165.79077677,103.81,103.71,204.31599882]
[1770042851461,165.79077677,103.81,103.71,213.00169882]
[1770042851664,30.79347677,103.81,103.72,135.1059]
[1770042851965,135.0169,103.79,103.71,69.19689882]
[1770042852161,7.44975086,103.77,103.68,204.35589882]
[1770042852363,164.24864584,103.83,103.72,204.30379882]
[1770042852566,164.24864584,103.83,103.73,212.97239882]
[1770042852762,134.9779,103.82,103.73,69.19689882]
[1770042852968,164.24864584,103.83,103.73,204.28599882]
[1770042852969,29.27774584,103.83,103.73,204.28599882]
[1770042853165,172.91934584,103.83,103.73,212.96989882]
[1770042853565,143.6826,103.8,103.7,204.32919882]
[1770042853761,8.6792,103.8,103.71,204.31499882]
[1770042853962,29.27774584,103.83,103.74,69.19689882]
[1770042854167,37.95444584,103.83,103.74,77.88019882]
[1770042854366,37.95444584,103.83,103.74,204.27669882]
[1770042854569,29.27774584,103.83,103.74,204.27669882]
[1770042855367,164.24354584,103.83,103.74,77.88019882]
[1770042855564,165.29661394,103.8,103.7,69.19689882]
[1770042855764,135.0182,103.79,103.7,69.19689882]
[1770042856070,8.6814,103.77,103.68,8.6883]
[1770042856268,135.0433,103.77,103.67,69.19689882]
[1770042856469,143.7381,103.76,103.67,77.88619882]
[1770042856664,135.0351,103.78,103.68,204.35329882]
[1770042856964,165.30361394,103.79,103.7,77.88369882]
[1770042857175,30.28651394,103.79,103.7,77.88369882]
[1770042857463,165.30461394,103.79,103.7,69.19689882]
[1770042857669,135.03,103.78,103.7,69.19689882]
[1770042857871,135.03,103.78,103.67,69.19689882]
[1770042857872,135.0552,103.76,103.67,69.19689882]
[1770042858475,135.0552,103.76,103.63,135.2165]
[1770042858476,135.111,103.72,103.63,69.19689882]
[1770042858665,164.99053389,103.72,103.63,69.19689882]
[1770042859061,29.27774584,103.74,103.65,69.19689882]
[1770042859062,135.0813,103.74,103.65,69.19689882]
[1770042859271,314.39727973,103.76,103.66,204.38019882]
[1770042859471,135.0076,103.8,103.71,213.00009882]
[1770042859472,37.28658167,103.8,103.71,213.00009882]
[1770042859766,163.61028167,103.8,103.71,69.19689882]
[1770042859965,135.0946,103.73,103.64,80.15510344]
[1770042860165,135.0946,103.73,103.61,71.46340344]
[1770042860166,135.1335,103.7,103.61,71.46340344]
[1770042860370,135.1594,103.68,103.58,520.0072]
[1770042860575,135.1594,103.68,103.6,135.2633]
[1770042860576,29.27774584,103.68,103.6,135.2633]
[1770042860869,193.0006861,103.7,103.6,135.2633]
[1770042861061,193.0006861,103.7,103.59,8.6958]
[1770042861062,163.73944026,103.69,103.59,8.6958]
[1770042861263,135.1772,103.67,103.58,456.18340344]
[1770042861466,163.04826217,103.68,103.58,591.47010344]
[1770042861671,36.57136217,103.68,103.59,135.2761]
[1770042861973,163.04576217,103.68,103.58,456.18340344]
[1770042862168,27.88206217,103.68,103.59,71.46340344]
[1770042862368,8.6881,103.69,103.6,71.46340344]
[1770042862874,8.6881,103.69,103.58,71.46340344]
[1770042862875,37.96804584,103.67,103.58,71.46340344]
[1770042863467,173.14144584,103.67,103.58,71.46340344]
[1770042863668,158.82060509,103.65,103.54,206.79920344]
[1770042863867,164.48904584,103.64,103.54,206.79920344]
[1770042864067,164.48904584,103.64,103.54,71.46340344]
[1770042864262,29.27774584,103.64,103.54,215.50330344]
[1770042864564,158.77710509,103.69,103.59,71.46340344]
[1770042865473,143.8494,103.68,103.59,71.46340344]
[1770042865669,8.6889,103.68,103.59,71.46340344]
[1770042865865,158.48074586,103.65,103.54,135.3337]
[1770042866070,196.4611917,103.64,103.54,144.0412]
[1770042866269,52.5563917,103.64,103.55,206.78890344]
[1770042866574,173.07164584,103.72,103.62,71.46340344]
[1770042866769,187.6645917,103.72,103.62,71.46340344]
[1770042866969,52.5563917,103.72,103.63,135.2237]
[1770042867277,52.5563917,103.72,103.63,215.37990344]
[1770042867476,23.27864586,103.72,103.63,215.37990344]
[1770042867673,135.1227,103.71,103.63,71.46340344]
[1770042867871,187.6655917,103.72,103.63,71.46340344]
[1770042868068,442.61923345,103.75,103.65,135.1974]
[1770042868272,442.61923345,103.75,103.58,452.44338929]
[1770042868273,187.87843345,103.72,103.61,206.70890344]
[1770042868471,158.61418761,103.71,103.61,71.46340344]
[1770042868775,419.22584584,103.72,103.62,71.46340344]
[1770042869276,143.8116,103.71,103.62,71.46340344]
[1770042869671,8.6866,103.71,103.62,71.46340344]
[1770042869870,164.38564584,103.72,103.64,71.46340344]
[1770042870068,135.1356,103.7,103.61,71.46340344]
[1770042870275,135.1472,103.69,103.61,71.46340344]
[1770042870473,8.6884,103.69,103.61,71.46340344]
[1770042870976,143.835,103.69,103.61,71.46340344]
[1770042871177,8.6884,103.69,103.61,71.46340344]
[1770042871371,143.8067,103.71,103.62,71.46340344]
[1770042871779,292.35618383,103.7,103.59,206.73700344]
[1770042872174,143.8353,103.69,103.59,80.15940344]
[1770042872472,135.1471,103.69,103.59,80.15940344]
[1770042872678,8.6909,103.66,103.57,215.46260344]
[1770042872978,22.07738383,103.67,103.57,215.46260344]
[1770042873174,254.88,103.68,103.59,71.46340344]
[1770042873376,29.27774584,103.69,103.61,71.46340344]
[1770042873671,135.1049,103.73,103.61,71.46340344]
[1770042873672,52.55988907,103.75,103.68,135.1573]
[1770042873875,158.32464323,103.77,103.67,71.46340344]
[1770042874070,135.0814,103.74,103.67,71.46340344]
[1770042874268,164.34594584,103.75,103.64,206.67330344]
[1770042874472,7.44566977,103.73,103.64,71.46340344]
[1770042874678,7.44566977,103.73,103.65,206.66120344]
[1770042874876,30.727813,103.76,103.67,71.46340344]
[1770042875077,7.44566977,103.76,103.69,206.60640344]
[1770042875273,7.44566977,103.8,103.72,71.46340344]
[1770042875470,7.44566977,103.82,103.74,71.46340344]
[1770042875671,7.44566977,103.88,103.79,206.47120344]
[1770042875870,7.44566977,103.88,103.79,71.46340344]
[1770042875871,134.9216,103.87,103.79,71.46340344]
[1770042876071,7.44566977,103.84,103.75,71.46340344]
[1770042876277,142.39846977,103.84,103.75,71.46340344]
[1770042876479,142.45156977,103.8,103.71,71.46340344]
[1770042876678,7.44566977,103.8,103.72,71.46340344]
[1770042877081,142.43766977,103.81,103.72,71.46340344]
[1770042877275,7.44566977,103.77,103.68,71.46340344]
[1770042877780,151.17006977,103.77,103.68,71.46340344]
[1770042878382,135.0298,103.78,103.69,71.46340344]
[1770042878874,135.0449,103.77,103.69,71.46340344]
[1770042879083,157.17456152,103.78,103.69,71.46340344]
[1770042879482,29.29294161,103.8,103.7,206.59030344]
[1770042879679,24.06735716,103.81,103.71,206.58220344]
[1770042879882,159.05775716,103.81,103.71,206.58220344]
[1770042880181,167.73935716,103.81,103.71,71.46340344]
[1770042880380,167.73935716,103.81,103.71,206.58260344]
[1770042880577,134.9609,103.84,103.74,206.54210344]
[1770042880777,53.36029877,103.85,103.75,135.0662]
[1770042880979,53.36029877,103.85,103.74,215.22420344]
[1770042880980,24.06735716,103.83,103.74,215.22420344]
[1770042881174,134.9661,103.83,103.72,206.56970344]
[1770042881373,134.9777,103.82,103.72,206.56970344]
[1770042881575,134.9548,103.84,103.74,71.46340344]
[1770042881977,134.9699,103.83,103.74,71.46340344]
[1770042882182,134.9779,103.82,103.74,71.46340344]
[1770042882478,134.9698,103.83,103.74,71.46340344]
[1770042882684,188.73894355,103.82,103.71,206.57290344]
[1770042882888,168.06790194,103.86,103.76,206.51760344]
[1770042883185,24.7377453,103.84,103.75,8.6825]
[1770042883386,134.98,103.82,103.73,456.18340344]
[1770042883576,134.9958,103.81,103.73,456.18340344]
[1770042883781,159.7177453,103.82,103.73,456.18340344]
[1770042884181,197.70008691,103.81,103.7,215.27330344]
[1770042884377,24.7377453,103.8,103.7,215.28170344]
[1770042884581,134.9785,103.82,103.73,71.46340344]
[1770042884779,8.6773,103.82,103.73,71.46340344]
[1770042885185,24.19477095,103.8,103.7,206.59490344]
[1770042885379,8.6796,103.79,103.7,71.46340344]
[1770042885580,24.19477095,103.77,103.68,206.62030344]
[1770042885788,159.19847095,103.8,103.69,206.60550344]
[1770042886185,24.19477095,103.8,103.7,135.1324]
[1770042886387,24.19477095,103.8,103.7,206.59580344]
[1770042886690,29.29294161,103.81,103.72,71.46340344]
[1770042887091,143.6831,103.8,103.72,71.46340344]
[1770042887286,160.21767008,103.79,103.69,215.29710344]
[1770042887486,160.21727008,103.79,103.69,215.29710344]
[1770042887691,37.97364161,103.78,103.69,71.46340344]
[1770042888187,29.29294161,103.84,103.75,70.72924282]
[1770042888392,25.16824975,103.85,103.76,70.72924282]
[1770042888694,25.16824975,103.85,103.77,70.72924282]
[1770042888887,8.6743,103.86,103.77,205.76894282]
[1770042889191,8.6743,103.86,103.77,70.72924282]
[1770042889392,143.6134,103.85,103.77,70.72924282]